[Event "13th All African Rapid-ch Women 2024"]
[Site "Accra"]
[Date "2024.03.10"]
[Round "3.5"]
[White "Laubscher, Anzel"]
[Black "Yavo Tchetche, Marie"]
[Result "0-1"]
[ECO "B30"]
[WhiteElo "1820"]
[BlackElo "1659"]
[Annotator "NA RC"]
[PlyCount "136"]
[EventDate "2024.03.07"]
[EventType "rapid"]
[EventCountry "GHA"]
[SourceTitle "playchess.com"]
[Source "ChessBase"]
[SourceQuality "1"]
[TimeControl "900+10"]

1. e4 {[%emt 0:00:03]} e6 {[%emt 0:00:03]} 2. d3 {[%emt 0:00:05]} c5 {[%emt 0:00:24]} 3. Nf3 {[%emt 0:00:18]} Nc6 {[%emt 0:00:02]} 4. g3 {[%emt 0:00:07]} d6 {[%emt 0:00:02]} 5. Bg2 {[%emt 0:00:06]} Nf6 {[%emt 0:00:02]} 6. O-O {[%emt 0:00:08] B30: Sizilianisch (Rossolimo-Variante).} g6 {[%emt 0:00:14]} 7. Re1 {[%emt 0:00:25]} Bg7 {[%emt 0:00:08]} 8. c3 {[%emt 0:00:08]} O-O {[%emt 0:00:04]} 9. d4 {[%emt 0:00:46]} cxd4 {[%emt 0:01:00]} 10. cxd4 {[%emt 0:00:19]} e5 {[%emt 0:00:45]} 11. d5 {[%emt 0:01:12]} Ne7 {[%emt 0:00:22]} 12. Qb3 {[%emt 0:00:54]} Nh5 {[%emt 0:01:22]} 13. Nc3 {[%emt 0:00:36]} f5 {[%emt 0:00:49]} 14. Bg5 {[%emt 0:02:35]} h6 {[%emt 0:00:22]} 15. Bxe7 {[%emt 0:00:23]} Qxe7 {[%emt 0:00:07]} 16. Nh4 {[%emt 0:00:35]} Kh7 {[%emt 0:00:16]} 17. Rac1 {[%emt 0:01:09]} a6 {[%emt 0:04:25]} 18. Qb6 {[%emt 0:01:08]} f4 {[%emt 0:00:49]} 19. Nf3 {[%emt 0:02:32]} Rf7 {[%emt 0:00:52]} 20. Ne2 {[%emt 0:00:35]} Bg4 {[%emt 0:01:26]} 21. Rc3 {[%emt 0:00:29]} Raf8 {[%emt 0:00:31]} 22. h3 {[%emt 0:02:35]} Bxf3 {[%emt 0:00:13]} 23. Rxf3 {[%emt 0:00:29]} fxg3 {[%emt 0:01:52]} 24. Rxf7 {[%emt 0:00:06]} Rxf7 {[%emt 0:00:20]} 25. fxg3 {[%emt 0:00:29]} Bf8 {[%emt 0:00:26]} 26. Rf1 {[%emt 0:00:19]} Rxf1+ {[%emt 0:01:03]} 27. Kxf1 {[%emt 0:00:02]} Qf7+ {[%emt 0:00:01]} 28. Qf2 {[%emt 0:00:16]} Qxf2+ {[%emt 0:00:11]} 29. Kxf2 {[%emt 0:00:01]} Be7 {[%emt 0:00:08]} 30. Ke3 {[%emt 0:00:27]} Bd8 {[%emt 0:00:04]} 31. g4 {[%emt 0:00:20]} Bb6+ {[%emt 0:00:25]} 32. Kf3 {[%emt 0:00:10]} Nf6 {[%emt 0:00:09]} 33. Nc3 {[%emt 0:00:06]} Bd4 {[%emt 0:00:15]} 34. Ke2 {[%emt 0:00:09]} g5 {[%emt 0:00:28]} 35. Kd3 {[%emt 0:00:09]} h5 {[%emt 0:00:18]} 36. Bf3 {[%emt 0:00:18]} hxg4 {[%emt 0:00:52]} 37. hxg4 {[%emt 0:00:01]} Nd7 {[%emt 0:00:09]} 38. b3 {[%emt 0:00:10]} Nc5+ {[%emt 0:00:05]} 39. Kd2 {[%emt 0:00:18]} Bxc3+ {[%emt 0:00:18]} 40. Kxc3 {[%emt 0:00:02]} b6 {[%emt 0:00:17]} 41. a3 {[%emt 0:00:22]} Kg6 {[%emt 0:00:02]} 42. Bg2 {[%emt 0:00:08]} Kf6 {[%emt 0:00:02]} 43. Bf3 {[%emt 0:00:12]} Ke7 {[%emt 0:00:01]} 44. b4 {[%emt 0:00:17]} Nb7 {[%emt 0:00:28]} 45. Be2 {[%emt 0:00:13]} a5 {[%emt 0:00:01]} 46. Ba6 {[%emt 0:00:10]} Nd8 {[%emt 0:00:01]} 47. bxa5 {[%emt 0:00:05]} bxa5 {[%emt 0:00:09]} 48. Bc8 {[%emt 0:00:25]} Nf7 {[%emt 0:00:10]} 49. Kb3 {[%emt 0:00:11]} Kd8 {[%emt 0:00:01]} 50. Bf5 {[%emt 0:00:06]} Kc7 {[%emt 0:00:07]} 51. Be6 {[%emt 0:00:07]} Nd8 {[%emt 0:00:01]} 52. Ka4 {[%emt 0:00:07]} Kb6 {[%emt 0:00:05]} 53. Bc8 {[%emt 0:00:12]} Nf7 {[%emt 0:00:03]} 54. Be6 {[%emt 0:00:11]} Nd8 {[%emt 0:00:22]} 55. Bc8 {[%emt 0:00:12]} Nf7 {[%emt 0:00:11]} 56. Be6 {[%emt 0:00:08]} Nh6 {[%emt 0:00:02]} 57. Bd7 {[%emt 0:00:17]} Ng8 {[%emt 0:00:02]} 58. Be6 {[%emt 0:00:14]} Nf6 {[%emt 0:00:06]} 59. Bf5 {[%emt 0:00:01]} Ne8 {[%emt 0:00:01]} 60. Bd7 {[%emt 0:00:11]} Nc7 {[%emt 0:00:01]} 61. Bc6 {[%emt 0:00:10]} Na6 {[%emt 0:00:02]} 62. Kb3 {[%emt 0:00:20]} Nc5+ {[%emt 0:00:01]} 63. Kc3 {[%emt 0:00:02]} Nxe4+ {[%emt 0:00:01]} 64. Kc2 {[%emt 0:00:08]} Kc5 {[%emt 0:00:10]} 65. a4 {[%emt 0:00:04]} Nf6 {[%emt 0:00:05]} 66. Kd3 $19 {[%emt 0:00:07]} Nxg4 {[%emt 0:00:03]} 67. Ke4 {[%emt 0:00:03]} Nf6+ {[%emt 0:00:01]} 68. Kf5 {[%emt 0:00:01]} Nxd5 {[%emt 0:00:01]} 0-1

[Event "13th All African Rapid-ch Women 2024"]
[Site "Accra"]
[Date "2024.03.10"]
[Round "3.6"]
[White "Tsinjoviniavo, Aina Mahasambatra"]
[Black "Gertrude Banini"]
[Result "1-0"]
[ECO "B13"]
[WhiteElo "1681"]
[BlackElo "1681"]
[Annotator "NA RC"]
[PlyCount "83"]
[EventDate "2024.03.07"]
[EventType "rapid"]
[EventCountry "GHA"]
[SourceTitle "playchess.com"]
[Source "ChessBase"]
[SourceQuality "1"]
[TimeControl "900+10"]

1. e4 {[%emt 0:00:01]} c6 {[%emt 0:00:04]} 2. d4 {[%emt 0:00:03]} d5 {[%emt 0:00:02]} 3. exd5 {[%emt 0:00:04]} cxd5 {[%emt 0:00:03]} 4. Nf3 {[%emt 0:00:04]} Nf6 {[%emt 0:00:38]} 5. Bb5+ {[%emt 0:00:06]} Nc6 {[%emt 0:00:26]} 6. Ne5 {[%emt 0:00:12]} Qb6 {[%emt 0:01:20]} 7. Nc3 {[%emt 0:00:37]} a6 {[%emt 0:00:27]} 8. Nxc6 {[%emt 0:00:20]} bxc6 {[%emt 0:00:07]} 9. Ba4 {[%emt 0:00:13]} Bf5 {[%emt 0:00:30]} 10. O-O {[%emt 0:00:30]} e6 {[%emt 0:00:06]} 11. a3 {[%emt 0:01:24]} Be7 {[%emt 0:00:13]} 12. b3 {[%emt 0:01:48]} O-O {[%emt 0:00:13]} 13. Bf4 {[%emt 0:00:33]} Rfc8 {[%emt 0:00:27]} 14. Ne2 {[%emt 0:00:23]} c5 {[%emt 0:00:37]} 15. Ra2 {[%emt 0:02:48]} c4 {[%emt 0:00:38]} 16. b4 {[%emt 0:00:29]} a5 {[%emt 0:01:16]} 17. c3 {[%emt 0:00:27]} Ra7 {[%emt 0:00:57]} 18. Ng3 {[%emt 0:00:29]} Bg6 {[%emt 0:00:33]} 19. Be5 {[%emt 0:00:19]} axb4 {[%emt 0:01:48]} 20. axb4 {[%emt 0:00:02]} Rca8 {[%emt 0:00:34]} 21. Ra1 {[%emt 0:00:10]} Ne4 {[%emt 0:00:54]} 22. Nxe4 {[%emt 0:00:09]} Bxe4 {[%emt 0:00:03]} 23. f3 {[%emt 0:00:03]} Bd3 {[%emt 0:00:47]} 24. Rf2 {[%emt 0:00:01]} Bd6 {[%emt 0:00:57]} 25. Bxd6 {[%emt 0:00:15]} Qxd6 {[%emt 0:00:03]} 26. Rfa2 {[%emt 0:00:04]} h6 {[%emt 0:01:04]} 27. Qd2 {[%emt 0:00:06]} e5 {[%emt 0:00:37]} 28. dxe5 {[%emt 0:00:18]} Qxe5 {[%emt 0:00:03]} 29. g3 {[%emt 0:01:35]} d4 {[%emt 0:00:10]} 30. f4 {[%emt 0:01:26]} Qe3+ {[%emt 0:01:19]} 31. Qxe3 {[%emt 0:00:05]} dxe3 {[%emt 0:00:02]} 32. Kg2 {[%emt 0:00:26]} e2 {[%emt 0:00:11]} 33. Kf2 {[%emt 0:00:03]} g6 {[%emt 0:00:36]} 34. Ke1 {[%emt 0:00:49]} Kg7 {[%emt 0:00:05]} 35. b5 {[%emt 0:00:17]} Re7 {[%emt 0:00:45]} 36. b6 {[%emt 0:00:25]} Re3 {[%emt 0:00:33]} 37. Bc6 {[%emt 0:00:18]} Rxa2 {[%emt 0:00:43]} 38. Rxa2 {[%emt 0:00:01]} Be4 {[%emt 0:00:25]} 39. Bxe4 {[%emt 0:00:08]} Rxe4 {[%emt 0:00:03]} 40. b7 {[%emt 0:00:02]} Re3 {[%emt 0:00:09]} 41. b8=Q {[%emt 0:00:06]} h5 {[%emt 0:00:18]} 42. Rxe2 {[%emt 0:00:03]} 1-0

[Event "13th All African Rapid-ch Women 2024"]
[Site "Accra"]
[Date "2024.03.10"]
[Round "3.7"]
[White "Banda Natalie Katlo"]
[Black "Shaba, Linda Dalitso"]
[Result "0-1"]
[ECO "D05"]
[WhiteElo "1772"]
[BlackElo "1836"]
[Annotator "NA RC"]
[PlyCount "70"]
[EventDate "2024.03.07"]
[EventType "rapid"]
[EventCountry "GHA"]
[SourceTitle "playchess.com"]
[Source "ChessBase"]
[SourceQuality "1"]
[TimeControl "900+10"]

1. d4 {[%emt 0:00:02]} e6 {[%emt 0:00:03]} 2. Nf3 {[%emt 0:00:02]} d5 {[%emt 0:00:12]} 3. e3 {[%emt 0:00:05]} Nf6 {[%emt 0:00:04]} 4. Nbd2 {[%emt 0:00:02]} c5 {[%emt 0:00:19]} 5. c3 {[%emt 0:00:02]} Qb6 {[%emt 0:00:08]} 6. Qb3 {[%emt 0:00:22] D05: Colle System with ...e6.} Bd7 {[%emt 0:00:31]} 7. Be2 {[%emt 0:01:06]} Be7 {[%emt 0:00:10]} 8. O-O {[%emt 0:00:07]} Nc6 {[%emt 0:00:22]} 9. Ne5 {[%emt 0:00:30]} Nxe5 {[%emt 0:01:42]} 10. dxe5 {[%emt 0:00:11]} Ng8 {[%emt 0:00:04]} 11. c4 {[%emt 0:02:08]} Bc6 {[%emt 0:00:47]} 12. cxd5 {[%emt 0:00:56]} Bxd5 {[%emt 0:00:10]} 13. Bb5+ {[%emt 0:00:30]} Bc6 {[%emt 0:00:10]} 14. Bxc6+ {[%emt 0:00:34]} Qxc6 {[%emt 0:00:04]} 15. Nc4 {[%emt 0:00:58]} b5 {[%emt 0:00:59]} 16. Nd2 {[%emt 0:01:48]} Nh6 {[%emt 0:02:16]} 17. a4 {[%emt 0:01:32]} b4 {[%emt 0:01:33]} 18. Qc4 {[%emt 0:00:09]} O-O {[%emt 0:02:14]} 19. b3 {[%emt 0:00:13]} Qd5 {[%emt 0:00:12]} 20. Qxd5 {[%emt 0:01:14]} exd5 {[%emt 0:00:03]} 21. e4 {[%emt 0:00:01]} Rfd8 {[%emt 0:00:28]} 22. Bb2 {[%emt 0:01:10]} Rac8 {[%emt 0:00:25]} 23. exd5 {[%emt 0:00:29]} Rxd5 {[%emt 0:00:02]} 24. Nc4 {[%emt 0:00:50]} Rd3 {[%emt 0:00:49]} 25. Na5 {[%emt 0:00:36]} Bd8 {[%emt 0:00:21]} 26. Nc4 {[%emt 0:01:09]} Rxb3 {[%emt 0:00:15]} 27. Rad1 {[%emt 0:00:35]} Bb6 {[%emt 0:02:25]} 28. Rd2 {[%emt 0:00:24]} Nf5 {[%emt 0:00:14]} 29. Rfd1 {[%emt 0:00:42]} h6 {[%emt 0:00:35]} 30. Nd6 {[%emt 0:01:26]} Nxd6 {[%emt 0:00:07]} 31. exd6 {[%emt 0:00:01]} c4 {[%emt 0:00:32]} 32. d7 {[%emt 0:00:06]} Rd8 {[%emt 0:00:03]} 33. Re1 {[%emt 0:00:02]} c3 {[%emt 0:00:30]} 34. Re8+ {[%emt 0:00:26]} Kh7 {[%emt 0:00:01]} 35. Bxc3 {[%emt 0:00:18]} Rb1+ {[%emt 0:00:19]} 0-1

[Event "13th All African Rapid-ch Women 2024"]
[Site "Accra"]
[Date "2024.03.10"]
[Round "3.9"]
[White "Marochkina, Nadezhda Valerevna"]
[Black "Benson, Maud"]
[Result "1-0"]
[ECO "E68"]
[WhiteElo "1819"]
[BlackElo "1664"]
[Annotator "NA RC"]
[PlyCount "78"]
[EventDate "2024.03.07"]
[EventType "rapid"]
[EventCountry "GHA"]
[SourceTitle "playchess.com"]
[Source "ChessBase"]
[SourceQuality "1"]
[TimeControl "900+10"]

1. d4 {[%emt 0:00:03]} Nf6 {[%emt 0:00:02]} 2. c4 {[%emt 0:00:09]} g6 {[%emt 0:00:11]} 3. Nf3 {[%emt 0:00:06]} Bg7 {[%emt 0:00:01]} 4. Nc3 {[%emt 0:00:06]} O-O {[%emt 0:00:03]} 5. e4 {[%emt 0:00:13]} d6 {[%emt 0:00:01]} 6. g3 {[%emt 0:00:31]} Nbd7 {[%emt 0:00:02]} 7. Bg2 {[%emt 0:00:02]} c6 {[%emt 0:00:01]} 8. O-O {[%emt 0:00:09]} Re8 {[%emt 0:00:02]} 9. Re1 {[%emt 0:01:15]} e5 {[%emt 0:00:05]} 10. d5 {[%emt 0:00:16]} cxd5 {[%emt 0:01:49] E68: Königsindisch (Hauptvariante des g3-Systems mit e2-e4).} 11. Nxd5 {[%emt 0:00:25]} Nxd5 {[%emt 0:00:31]} 12. Qxd5 {[%emt 0:00:22]} Nf6 {[%emt 0:00:01]} 13. Qd2 {[%emt 0:01:37]} Qc7 {[%emt 0:01:23]} 14. b3 {[%emt 0:00:18]} Bd7 {[%emt 0:00:02]} 15. Ba3 {[%emt 0:00:17]} Bf8 {[%emt 0:00:06]} 16. Rad1 {[%emt 0:00:36]} Bc6 {[%emt 0:00:12]} 17. Nh4 {[%emt 0:01:28]} Rad8 {[%emt 0:00:11]} 18. Qg5 {[%emt 0:01:59]} Kg7 {[%emt 0:00:25]} 19. Nf5+ {[%emt 0:00:23]} Kg8 {[%emt 0:00:39]} 20. Qxf6 {[%emt 0:00:43]} gxf5 {[%emt 0:00:15]} 21. Qxf5 {[%emt 0:00:12]} Re6 {[%emt 0:01:37]} 22. Bc1 {[%emt 0:02:34]} Be7 {[%emt 0:02:10]} 23. Bh3 {[%emt 0:00:38]} Rf6 {[%emt 0:00:23]} 24. Qh5 {[%emt 0:00:41]} Bd7 {[%emt 0:00:47]} 25. Bg5 {[%emt 0:01:00]} Bxh3 {[%emt 0:02:58]} 26. Bxf6 {[%emt 0:00:04]} Bxf6 {[%emt 0:00:21]} 27. Qxh3 {[%emt 0:00:05]} a5 {[%emt 0:02:00]} 28. Qf5 {[%emt 0:00:10]} Bg7 {[%emt 0:00:10]} 29. Rd5 {[%emt 0:00:28]} a4 {[%emt 0:00:10]} 30. Red1 {[%emt 0:00:09]} axb3 {[%emt 0:00:05]} 31. axb3 {[%emt 0:00:02]} Qb6 {[%emt 0:00:28]} 32. Rb5 {[%emt 0:00:13]} Qc7 {[%emt 0:00:13]} 33. Qg5 {[%emt 0:00:10]} f6 {[%emt 0:00:04]} 34. Qf5 {[%emt 0:00:11]} Qe7 {[%emt 0:00:13]} 35. Ra1 {[%emt 0:00:28]} h6 {[%emt 0:00:23]} 36. Ra7 {[%emt 0:00:04]} Rd7 {[%emt 0:00:04]} 37. Raxb7 {[%emt 0:00:39]} Rxb7 {[%emt 0:00:16]} 38. Qc8+ {[%emt 0:00:02]} Kh7 {[%emt 0:00:18]} 39. Rxb7 {[%emt 0:00:15]} Qf7 {[%emt 0:02:58]} 1-0

[Event "13th All African Rapid-ch Women 2024"]
[Site "Accra"]
[Date "2024.03.10"]
[Round "4.1"]
[White "Wafa, Shahenda"]
[Black "Junior, Ednasia"]
[Result "1-0"]
[ECO "B48"]
[WhiteElo "2083"]
[BlackElo "1915"]
[Annotator "RC"]
[PlyCount "113"]
[EventDate "2024.03.07"]
[EventType "rapid"]
[EventCountry "GHA"]
[SourceTitle "playchess.com"]
[Source "ChessBase"]
[SourceQuality "1"]
[TimeControl "900+10"]

1. e4 {[%emt 0:00:42]} c5 {[%emt 0:00:00]} 2. Nf3 {[%emt 0:00:03]} e6 {[%emt 0:00:01]} 3. d4 {[%emt 0:00:04]} cxd4 {[%emt 0:00:01]} 4. Nxd4 {[%emt 0:00:04]} Nc6 {[%emt 0:00:01]} 5. Nc3 {[%emt 0:00:06]} Qc7 {[%emt 0:00:07]} 6. Be3 {[%emt 0:00:09]} a6 {[%emt 0:00:05]} 7. Qf3 {[%emt 0:00:40]} b5 {[%emt 0:00:58]} 8. Nxc6 {[%emt 0:01:33]} Qxc6 {[%emt 0:00:33]} 9. e5 {[%emt 0:03:26]} Qxf3 {[%emt 0:00:32]} 10. gxf3 {[%emt 0:00:01]} Bb7 {[%emt 0:00:01]} 11. Be2 {[%emt 0:01:03]} d6 {[%emt 0:01:24]} 12. exd6 {[%emt 0:00:18]} Bxd6 {[%emt 0:00:20]} 13. O-O-O {[%emt 0:00:05]} O-O-O {[%emt 0:01:43]} 14. Ne4 {[%emt 0:00:17]} Be7 {[%emt 0:01:37]} 15. Rxd8+ {[%emt 0:00:50]} Kxd8 {[%emt 0:00:32]} 16. Rd1+ {[%emt 0:01:29]} Kc8 {[%emt 0:01:48]} 17. Nd6+ {[%emt 0:01:12]} Bxd6 {[%emt 0:01:23]} 18. Rxd6 {[%emt 0:00:01]} Nf6 {[%emt 0:00:05]} 19. a4 {[%emt 0:00:27]} Nd5 {[%emt 0:04:21]} 20. axb5 {[%emt 0:00:38]} axb5 {[%emt 0:00:07]} 21. Bxb5 {[%emt 0:00:14]} Nxe3 {[%emt 0:00:20]} 22. fxe3 {[%emt 0:00:01]} Bxf3 {[%emt 0:00:21]} 23. Bd3 {[%emt 0:01:37]} Bb7 {[%emt 0:01:22]} 24. Rd4 {[%emt 0:00:28]} Kc7 {[%emt 0:00:10]} 25. b4 {[%emt 0:00:11]} e5 {[%emt 0:00:25]} 26. Rc4+ {[%emt 0:00:06]} Kb6 {[%emt 0:00:05]} 27. Rc5 {[%emt 0:00:12]} f6 {[%emt 0:00:06]} 28. Rb5+ {[%emt 0:00:12]} Kc7 {[%emt 0:00:13]} 29. Rc5+ {[%emt 0:00:14]} Kb6 {[%emt 0:00:02]} 30. c4 {[%emt 0:00:10]} Rd8 {[%emt 0:00:08]} 31. Rb5+ {[%emt 0:00:09]} Kc7 {[%emt 0:00:05]} 32. Kc2 {[%emt 0:00:09]} g6 {[%emt 0:00:22]} 33. Rc5+ {[%emt 0:00:05]} Kb6 {[%emt 0:00:01]} 34. Ra5 {[%emt 0:00:04]} Rd7 {[%emt 0:00:48]} 35. c5+ {[%emt 0:00:05]} Kc7 {[%emt 0:00:04]} 36. Kc3 {[%emt 0:00:30]} f5 {[%emt 0:00:14]} 37. b5 {[%emt 0:00:13]} Rd8 {[%emt 0:00:25]} 38. c6 {[%emt 0:00:21]} Kb6 {[%emt 0:00:16]} 39. Ra1 {[%emt 0:00:18]} Ba8 {[%emt 0:00:15]} 40. Ra6+ {[%emt 0:00:04]} Kc5 {[%emt 0:00:06]} 41. Ra7 {[%emt 0:00:30]} Bxc6 {[%emt 0:00:13]} 42. bxc6 {[%emt 0:00:03]} Kxc6 {[%emt 0:00:01]} 43. Rxh7 {[%emt 0:00:02]} Rd6 {[%emt 0:00:04]} 44. Re7 {[%emt 0:00:20]} e4 {[%emt 0:00:06]} 45. Bc4 {[%emt 0:00:03]} Kc5 {[%emt 0:00:02]} 46. Rc7+ {[%emt 0:00:01]} Kb6 {[%emt 0:00:00]} 47. Rc8 {[%emt 0:00:06]} Rf6 {[%emt 0:00:04]} 48. Kd4 {[%emt 0:00:06]} Rd6+ {[%emt 0:00:34]} 49. Bd5 {[%emt 0:00:06]} Ka5 {[%emt 0:00:28]} 50. Kc5 {[%emt 0:00:09]} Ra6 {[%emt 0:00:02]} 51. Ra8 {[%emt 0:03:43]} Rxa8 {[%emt 0:00:13]} 52. Bxa8 {[%emt 0:00:00]} g5 {[%emt 0:00:14]} 53. Bxe4 {[%emt 0:00:00]} fxe4 {[%emt 0:00:01]} 54. Kd4 {[%emt 0:00:00]} Kb5 {[%emt 0:00:10]} 55. Kxe4 {[%emt 0:00:00]} Kc5 {[%emt 0:00:18]} 56. Kf5 {[%emt 0:00:00]} Kd5 {[%emt 0:00:15]} 57. Kxg5 {[%emt 0:00:00]} 1-0

[Event "13th All African Rapid-ch Women 2024"]
[Site "Accra"]
[Date "2024.03.10"]
[Round "4.2"]
[White "Nakabo, Peninah"]
[Black "PEACE SAMSON"]
[Result "1-0"]
[ECO "B27"]
[WhiteElo "1836"]
[BlackElo "1870"]
[Annotator "NA RC"]
[PlyCount "77"]
[EventDate "2024.03.07"]
[EventType "rapid"]
[EventCountry "GHA"]
[SourceTitle "playchess.com"]
[Source "ChessBase"]
[SourceQuality "1"]
[TimeControl "900+10"]

1. e4 {[%emt 0:00:02]} c5 {[%emt 0:00:03]} 2. c3 {[%emt 0:00:02]} g6 {[%emt 0:00:12]} 3. d4 {[%emt 0:00:04]} cxd4 {[%emt 0:00:02]} 4. cxd4 {[%emt 0:00:01]} Bg7 {[%emt 0:00:01]} 5. Nf3 {[%emt 0:00:07]} Qb6 {[%emt 0:00:37]} 6. Nc3 {[%emt 0:00:30]} Nc6 {[%emt 0:00:07]} 7. d5 {[%emt 0:00:54]} Nd4 {[%emt 0:02:04]} 8. Be2 {[%emt 0:01:12]} Nxf3+ {[%emt 0:00:27]} 9. Bxf3 {[%emt 0:00:06]} d6 {[%emt 0:00:18]} 10. O-O {[%emt 0:00:09]} Nf6 {[%emt 0:00:02]} 11. Rb1 {[%emt 0:01:28]} Bd7 {[%emt 0:00:17]} 12. Be3 {[%emt 0:00:14]} Qc7 {[%emt 0:00:17]} 13. Qd2 {[%emt 0:00:36]} O-O {[%emt 0:00:45]} 14. Rfc1 {[%emt 0:00:04]} Qd8 {[%emt 0:00:55]} 15. Bh6 {[%emt 0:00:32]} Bg4 {[%emt 0:01:17]} 16. Bxg4 {[%emt 0:00:44]} Nxg4 {[%emt 0:00:05]} 17. Bxg7 {[%emt 0:00:03]} Kxg7 {[%emt 0:00:03]} 18. Qd4+ {[%emt 0:00:38]} Kg8 {[%emt 0:00:14]} 19. h3 {[%emt 0:00:13]} Nf6 {[%emt 0:01:17]} 20. f4 {[%emt 0:00:16]} a6 {[%emt 0:00:28]} 21. e5 {[%emt 0:00:15]} Nd7 {[%emt 0:02:08]} 22. Ne4 {[%emt 0:00:10]} dxe5 {[%emt 0:02:40]} 23. fxe5 {[%emt 0:00:04]} Qb6 {[%emt 0:00:03]} 24. Qxb6 {[%emt 0:00:27]} Nxb6 {[%emt 0:00:02]} 25. d6 {[%emt 0:00:04]} Nd7 {[%emt 0:01:51]} 26. dxe7 {[%emt 0:00:14]} Rfe8 {[%emt 0:00:03]} 27. Nf6+ {[%emt 0:00:03]} Nxf6 {[%emt 0:00:02]} 28. exf6 {[%emt 0:00:02]} h5 {[%emt 0:00:45]} 29. g4 {[%emt 0:01:38]} hxg4 {[%emt 0:00:09]} 30. hxg4 {[%emt 0:00:02]} g5 {[%emt 0:00:03]} 31. Rc5 {[%emt 0:00:08]} Kh7 {[%emt 0:00:08]} 32. Rxg5 {[%emt 0:00:11]} Kh6 {[%emt 0:00:01]} 33. Rg7 {[%emt 0:00:30]} Rxe7 {[%emt 0:00:18]} 34. g5+ {[%emt 0:00:07]} Kh5 {[%emt 0:00:11]} 35. fxe7 {[%emt 0:00:03]} Re8 {[%emt 0:00:01]} 36. Re1 {[%emt 0:00:15]} Kg4 {[%emt 0:00:06]} 37. Kf2 {[%emt 0:00:42]} Kf5 {[%emt 0:00:10]} 38. Rxf7+ {[%emt 0:00:06]} Kxg5 {[%emt 0:00:01]} 39. Rf8 {[%emt 0:00:05]} 1-0

[Event "13th All African Rapid-ch Women 2024"]
[Site "Accra"]
[Date "2024.03.10"]
[Round "4.3"]
[White "Yavo Tchetche, Marie"]
[Black "Nassr, Lina"]
[Result "0-1"]
[ECO "A46"]
[WhiteElo "1659"]
[BlackElo "2080"]
[Annotator "RC"]
[PlyCount "77"]
[EventDate "2024.03.07"]
[EventType "rapid"]
[EventCountry "GHA"]
[SourceTitle "playchess.com"]
[Source "ChessBase"]
[SourceQuality "1"]
[TimeControl "900+10"]

1. d4 {[%emt 0:00:23]} d5 {[%emt 0:00:04]} 2. Nf3 {[%emt 0:00:02]} Nf6 {[%emt 0:00:02]} 3. g3 {[%emt 0:00:02]} e6 {[%emt 0:00:05]} 4. Bg2 {[%emt 0:00:02]} b5 {[%emt 0:00:08]} 5. O-O {[%emt 0:00:15]} Bb7 {[%emt 0:00:16]} 6. Nbd2 {[%emt 0:00:48]} c5 {[%emt 0:00:37]} 7. c3 {[%emt 0:00:41]} Nc6 {[%emt 0:00:44]} 8. a4 {[%emt 0:00:12]} b4 {[%emt 0:00:15]} 9. c4 {[%emt 0:00:58]} cxd4 {[%emt 0:01:18]} 10. cxd5 {[%emt 0:00:07]} Nxd5 {[%emt 0:00:12]} 11. Nb3 {[%emt 0:00:10]} e5 {[%emt 0:00:32]} 12. Qc2 {[%emt 0:00:46]} Rc8 {[%emt 0:01:47]} 13. Qf5 {[%emt 0:00:25]} g6 {[%emt 0:01:10]} 14. Qd3 {[%emt 0:00:30]} Bg7 {[%emt 0:01:01]} 15. Qb5 {[%emt 0:01:40]} Rb8 {[%emt 0:02:49]} 16. Nxe5 {[%emt 0:00:49]} Bxe5 {[%emt 0:00:57]} 17. Qxd5 {[%emt 0:00:03]} Qxd5 {[%emt 0:00:29]} 18. Bxd5 {[%emt 0:00:02]} Na5 {[%emt 0:01:27]} 19. Bxf7+ {[%emt 0:00:44]} Kxf7 {[%emt 0:00:01]} 20. Nxa5 {[%emt 0:00:01]} Bd5 {[%emt 0:00:09]} 21. b3 {[%emt 0:00:35]} Rhc8 {[%emt 0:00:35]} 22. Bd2 {[%emt 0:00:40]} d3 {[%emt 0:00:31]} 23. exd3 {[%emt 0:01:04]} Bxa1 {[%emt 0:00:10]} 24. Rxa1 {[%emt 0:00:08]} Rc2 {[%emt 0:00:20]} 25. Be3 {[%emt 0:00:10]} a6 {[%emt 0:00:24]} 26. Nc4 {[%emt 0:01:50]} Bxc4 {[%emt 0:00:46]} 27. bxc4 {[%emt 0:00:07]} Rc3 {[%emt 0:00:19]} 28. Rd1 {[%emt 0:01:40]} Rd8 {[%emt 0:00:05]} 29. Rb1 {[%emt 0:00:03]} b3 {[%emt 0:00:11]} 30. c5 {[%emt 0:00:30]} Rd5 {[%emt 0:02:46]} 31. d4 Rxd4 {[%emt 0:00:00]} 32. Kg2 {[%emt 0:00:27]} Rdd3 {[%emt 0:00:00]} 33. Kf3 {[%emt 0:00:22]} Rc2 {[%emt 0:00:00]} 34. c6 {[%emt 0:00:15]} b2 {[%emt 0:00:00]} 35. Ke4 {[%emt 0:00:21]} Rdc3 {[%emt 0:00:00]} 36. Bd4 Rxc6 {[%emt 0:00:07]} 37. Kd3 {[%emt 0:00:37]} R2c4 {[%emt 0:00:03]} 38. Bxb2 Rxa4 {[%emt 0:00:00]} 39. Ba3 {[%emt 0:02:53]} 0-1